bitfinex/quotes_BTCUSD_20220204
["timestamp","ask_amount","ask_price","bid_price","bid_amount"]
[1643987281563,0.0011,38455.0,38449.0,0.53664404]
[1643987281762,2.422799,38454.0,38449.0,0.53664404]
[1643987281962,1.345215,38454.0,38449.0,0.25120088]
[1643987282231,1.315414,38453.0,38449.0,0.25120088]
[1643987282419,1.098944,38453.0,38449.0,0.25120088]
[1643987282619,0.0011,38455.0,38449.0,0.25120088]
[1643987282620,0.764575,38452.0,38449.0,0.25120088]
[1643987282820,0.0011,38455.0,38448.0,0.018325]
[1643987283620,1.1365533,38449.0,38448.0,0.018325]
[1643987283819,0.05,38449.0,38448.0,0.018325]
[1643987284019,0.1,38449.0,38448.0,0.018325]
[1643987284220,0.04,38449.0,38448.0,0.018325]
[1643987284421,1.67360459,38449.0,38448.0,0.018325]
[1643987284822,1.67360459,38449.0,38443.0,0.00754077]
[1643987284823,1.72350459,38449.0,38443.0,0.00754077]
[1643987285122,1.2,38444.0,38443.0,0.00754077]
[1643987285320,0.0499,38449.0,38443.0,0.00754077]
[1643987285725,0.0499,38449.0,38438.0,0.15685775]
[1643987285726,0.01,38449.0,38438.0,0.15685775]
[1643987285959,0.01,38449.0,38436.0,0.01992861]
[1643987285960,0.05,38439.0,38436.0,0.01992861]
[1643987286161,0.05,38437.0,38436.0,0.01992861]
[1643987286367,0.05,38440.0,38436.0,0.01992861]
[1643987286562,0.34312491,38443.0,38441.0,0.687822]
[1643987286763,2.12837172,38442.0,38441.0,0.687822]
[1643987286964,2.03439904,38442.0,38436.0,0.01992861]
[1643987287161,2.13439904,38442.0,38436.0,0.01992861]
[1643987287360,0.17736831,38441.0,38436.0,0.01992861]
[1643987287562,0.19549159,38433.0,38427.0,0.28703722]
[1643987287762,0.25002833,38443.0,38432.0,0.27863171]
[1643987287962,0.25002833,38443.0,38433.0,0.28703722]
[1643987287963,0.05,38443.0,38433.0,0.28703722]
[1643987288161,0.1,38448.0,38425.0,0.01909491]
[1643987288368,0.99482,38445.0,38425.0,0.01909491]
[1643987288563,1.03892,38444.0,38425.0,0.01909491]
[1643987288761,0.99482,38443.0,38425.0,0.01909491]
[1643987288960,0.99482,38443.0,38423.0,0.27375112]
[1643987288961,0.05,38426.0,38423.0,0.27375112]
[1643987289164,0.05,38426.0,38422.0,0.05]
[1643987289360,0.28361804,38432.0,38422.0,0.05]
[1643987289361,0.33361804,38432.0,38422.0,0.05]
[1643987289560,0.38361804,38432.0,38422.0,0.05]
[1643987289811,0.3333973,38428.0,38422.0,0.05]
[1643987290009,0.15750695,38429.0,38422.0,0.05]
[1643987290213,0.38361804,38432.0,38422.0,0.05]
[1643987290913,0.10222154,38429.0,38422.0,0.05]
[1643987291111,0.15380155,38425.0,38422.0,0.05]
[1643987291310,0.19465008,38418.0,38412.0,0.10868646]
[1643987291513,0.19465008,38418.0,38406.0,0.38706145]
[1643987291709,0.19465008,38418.0,38404.0,0.43706145]
[1643987291710,0.02154757,38413.0,38404.0,0.43706145]
[1643987291913,0.02154757,38413.0,38402.0,0.38706145]
[1643987292110,0.02154757,38413.0,38407.0,0.05]
[1643987292512,0.02154757,38413.0,38404.0,0.05]
[1643987292717,0.02154757,38413.0,38400.0,0.39706145]
[1643987292718,0.2908819,38410.0,38400.0,0.39706145]
[1643987292914,0.02154757,38413.0,38403.0,0.05]
[1643987293114,0.02154757,38413.0,38400.0,0.01]
[1643987293115,0.05,38410.0,38401.0,0.125999]
[1643987293487,0.02154757,38413.0,38412.0,0.39412639]
[1643987293680,0.02154757,38413.0,38412.0,0.44412639]
[1643987294083,0.02154757,38413.0,38412.0,0.18821875]
[1643987294478,0.02154757,38413.0,38412.0,0.05]
[1643987294880,0.05,38417.0,38413.0,1.15]
[1643987295084,3.00403337,38441.0,38418.0,0.13821875]
[1643987295085,0.05,38432.0,38418.0,0.13821875]
[1643987295284,0.05,38432.0,38417.0,0.2891793]
[1643987295479,0.05,38432.0,38415.0,0.05]
[1643987295678,0.05,38432.0,38412.0,0.02154757]
[1643987295679,0.05,38432.0,38420.0,0.05]
[1643987295880,0.05,38432.0,38417.0,0.30315684]
[1643987295881,0.44961372,38426.0,38417.0,0.30315684]
[1643987296088,0.05,38424.0,38417.0,0.30315684]
[1643987296380,0.2500378,38438.0,38422.0,0.05]
[1643987296581,0.05,38432.0,38418.0,0.2891793]
[1643987296782,0.05,38428.0,38416.0,0.05]
[1643987296984,1.00884587,38436.0,38427.0,0.05]
[1643987296985,0.01402587,38436.0,38427.0,0.05]
[1643987297221,0.05,38435.0,38434.0,1.82321204]
[1643987297411,0.27744984,38442.0,38435.0,0.01402587]
[1643987297710,0.05,38440.0,38435.0,0.01402587]
[1643987297910,0.05,38440.0,38436.0,0.30858053]
[1643987298111,0.05,38440.0,38439.0,0.05]
[1643987298315,0.05,38446.0,38439.0,0.3391793]
[1643987298515,0.7807,38455.0,38445.0,0.05]
[1643987298516,0.0011,38455.0,38445.0,0.05]
[1643987298716,0.0011,38455.0,38440.0,0.2486798]
[1643987298717,0.0011,38455.0,38454.0,0.05]
[1643987299713,0.0011,38455.0,38454.0,0.04756442]
[1643987300112,0.0011,38455.0,38453.0,0.26890436]
[1643987300716,0.0011,38455.0,38454.0,0.04756442]
[1643987300958,0.0011,38455.0,38454.0,0.30070734]
[1643987301159,0.0011,38455.0,38453.0,0.26890436]
[1643987301467,0.17293803,38454.0,38450.0,0.01915423]
[1643987301661,0.17537361,38454.0,38450.0,0.01915423]
[1643987301861,0.17293803,38454.0,38450.0,0.01915423]
[1643987302259,0.85243558,38451.0,38450.0,0.01915423]
[1643987302658,0.38546273,38451.0,38450.0,0.01915423]
[1643987303060,0.38546273,38451.0,38445.0,0.02071063]
[1643987303061,0.33302715,38451.0,38445.0,0.02071063]
[1643987303258,0.38302715,38451.0,38445.0,0.02071063]
[1643987303559,0.0011,38455.0,38446.0,0.35]
[1643987303757,0.0011,38455.0,38445.0,0.01999939]
[1643987303959,0.15169,38455.0,38445.0,0.01999939]
[1643987304164,0.15059,38450.0,38448.0,0.05]
[1643987304359,0.0011,38455.0,38445.0,0.01999939]
[1643987304559,0.0011,38455.0,38447.0,0.26346124]
[1643987305029,0.30686588,38451.0,38441.0,0.34563042]
[1643987305236,0.14926169,38448.0,38441.0,0.02048666]
[1643987305429,0.0011,38456.0,38441.0,0.02048666]
[1643987305430,0.1011,38468.0,38442.0,1.85]
[1643987305635,0.15169,38465.0,38462.0,0.18821875]
[1643987306429,0.15169,38465.0,38462.0,0.49755911]
[1643987306629,0.14969,38465.0,38462.0,0.49755911]
[1643987306839,0.14969,38465.0,38462.0,0.30934036]
[1643987306840,0.0011,38465.0,38462.0,0.30934036]
[1643987307428,0.17595294,38464.0,38458.0,2.46215511]
[1643987307631,0.29865694,38463.0,38458.0,2.27393636]
[1643987307833,0.346739,38462.0,38458.0,0.02146306]
[1643987308030,0.29865694,38463.0,38458.0,0.02146306]
[1643987308230,0.346739,38462.0,38458.0,0.02146306]
[1643987308461,0.39865694,38463.0,38458.0,0.02146306]
[1643987308660,0.0011,38465.0,38458.0,0.02146306]
[1643987308862,0.0011,38465.0,38459.0,0.05]
[1643987309063,0.0011,38465.0,38458.0,0.02146306]
[1643987309661,0.32845363,38462.0,38458.0,0.01996306]
[1643987310266,0.32845363,38462.0,38453.0,0.01862811]
[1643987310267,0.52845363,38462.0,38453.0,0.01862811]
[1643987310463,0.36468293,38454.0,38453.0,0.01862811]
[1643987310661,0.56259777,38454.0,38453.0,0.01862811]
[1643987310861,0.66259777,38454.0,38453.0,0.01862811]
[1643987311060,0.29042191,38447.0,38446.0,0.01945661]
[1643987311262,0.05,38454.0,38446.0,0.01945661]
[1643987311462,0.1,38460.0,38446.0,0.01945661]
[1643987311463,0.346739,38453.0,38446.0,0.01945661]
[1643987311661,0.05,38453.0,38446.0,0.01945661]
[1643987311862,0.52,38462.0,38453.0,0.15]
[1643987312069,0.42,38462.0,38456.0,0.0990915]
[1643987312321,0.30640743,38465.0,38456.0,0.0990915]
[1643987312322,0.0011,38465.0,38456.0,0.0990915]
[1643987312522,0.0011,38465.0,38462.0,0.13821875]
[1643987312724,0.01,38469.0,38464.0,0.05]
[1643987313023,0.01,38469.0,38465.0,0.28460126]
[1643987313222,0.210049,38483.0,38470.0,0.194924]
[1643987313426,0.0011,38487.0,38482.0,0.28886184]
[1643987313622,0.0011,38488.0,38482.0,0.53886184]
[1643987313825,0.0011,38488.0,38482.0,0.48886184]
[1643987314022,0.834688,38487.0,38482.0,0.48886184]
[1643987314221,0.834688,38487.0,38485.0,0.05]
[1643987314222,0.827808,38487.0,38485.0,0.05]
[1643987314423,0.0011,38488.0,38485.0,0.05]
[1643987314626,0.0011,38488.0,38482.0,0.48886184]
[1643987314823,0.0011,38488.0,38482.0,0.2]
[1643987315024,0.0011,38488.0,38485.0,0.05]
[1643987315222,0.0011,38488.0,38484.0,0.28460126]
[1643987315421,0.0011,38488.0,38485.0,0.05]
[1643987315621,0.0011,38490.0,38486.0,0.38438401]
[1643987315824,0.0011,38490.0,38489.0,0.13821875]
[1643987316071,0.0033,38503.0,38489.0,0.13821875]
[1643987316072,0.0522,38502.0,38489.0,0.46641815]
[1643987316271,0.0022,38502.0,38489.0,0.46641815]
[1643987316465,0.0022,38502.0,38489.0,0.51641815]
[1643987316666,0.0022,38502.0,38489.0,0.46641815]
[1643987316866,0.0022,38502.0,38495.0,0.10316968]
[1643987317067,0.0022,38502.0,38497.0,0.26964469]
[1643987317467,0.0022,38502.0,38497.0,0.24403869]
[1643987317666,0.0022,38502.0,38491.0,0.28460126]
[1643987317870,0.99482,38497.0,38489.0,0.020709]
[1643987318069,0.0022,38502.0,38489.0,0.020709]
[1643987318267,0.07869636,38502.0,38489.0,0.020709]
[1643987318469,1.47256005,38491.0,38490.0,0.389757]
[1643987318670,1.80173221,38491.0,38490.0,0.389757]
[1643987319070,0.38756363,38491.0,38490.0,0.389757]
[1643987319268,0.1022,38502.0,38490.0,0.389757]
[1643987319468,0.0022,38502.0,38488.0,0.389757]
[1643987319718,0.2,38498.0,38491.0,0.389757]
[1643987319918,0.99482,38497.0,38488.0,0.389757]
[1643987320115,1.341559,38496.0,38492.0,0.389757]
[1643987320313,1.46288287,38489.0,38487.0,0.00314217]
[1643987320515,0.05,38489.0,38485.0,5.436e-05]
[1643987320812,0.05,38489.0,38488.0,0.01987489]
[1643987321014,0.27604916,38493.0,38486.0,0.389757]
[1643987321212,0.0198,38489.0,38486.0,0.064969]
[1643987321413,0.0198,38489.0,38487.0,0.389757]
[1643987322014,0.5,38498.0,38487.0,0.389757]
[1643987322311,0.5,38498.0,38488.0,0.0198]
[1643987322516,0.27733531,38491.0,38488.0,0.0198]
[1643987322914,0.27733531,38491.0,38488.0,0.02885693]
[1643987322915,0.15013906,38490.0,38488.0,0.02885693]
[1643987324368,0.32733531,38491.0,38490.0,0.40041717]
[1643987324369,0.05,38491.0,38490.0,0.40041717]
[1643987324566,0.05,38491.0,38488.0,0.02885693]
[1643987324567,0.1,38498.0,38488.0,0.02885693]
[1643987324969,0.1,38498.0,38488.0,0.00905693]
[1643987325176,0.31346597,38497.0,38488.0,0.00899693]
[1643987325370,0.15215542,38497.0,38488.0,0.00899693]
[1643987325568,0.42217659,38497.0,38488.0,0.00899693]
[1643987325768,0.42217659,38497.0,38489.0,0.129903]
[1643987325969,0.15215542,38497.0,38489.0,0.129903]
[1643987326772,0.346739,38496.0,38488.0,0.00899693]
[1643987326971,0.16148467,38498.0,38488.0,0.00899693]
[1643987326972,0.09970342,38498.0,38488.0,0.00899693]
[1643987327218,0.0022,38502.0,38488.0,0.00899693]
[1643987327410,0.0022,38502.0,38499.0,0.02068013]
[1643987327612,0.346739,38501.0,38499.0,0.02068013]
[1643987327814,2.196739,38500.0,38499.0,0.02068013]
[1643987328013,2.66010043,38500.0,38499.0,0.02068013]
[1643987328213,2.31336143,38500.0,38499.0,0.02068013]
[1643987328612,0.0022,38502.0,38499.0,0.07068013]
[1643987328818,0.01,38509.0,38501.0,0.2]
[1643987329117,0.01,38509.0,38506.0,0.05]
[1643987329312,0.39638184,38517.0,38506.0,0.05]
[1643987329512,0.39638184,38517.0,38499.0,0.07068013]
[1643987329714,0.39638184,38517.0,38500.0,0.52995232]
[1643987329715,0.4637843,38509.0,38500.0,0.52995232]
[1643987329920,0.001,38517.0,38501.0,0.179864]
[1643987330117,0.001,38517.0,38504.0,0.05]
[1643987330320,0.001,38517.0,38505.0,0.28042628]
[1643987330618,0.08981137,38523.0,38503.0,0.28042628]
[1643987330817,0.36440772,38519.0,38504.0,0.05]
[1643987331084,0.30677225,38513.0,38502.0,0.26151076]
[1643987331284,0.09964814,38510.0,38501.0,0.129864]
[1643987331686,0.34909897,38507.0,38501.0,0.129864]
[1643987331882,0.34909897,38507.0,38499.0,0.02068013]
[1643987331883,0.44909897,38507.0,38499.0,0.02068013]
[1643987332082,0.05,38503.0,38499.0,0.02068013]
[1643987332282,0.44909897,38507.0,38499.0,0.02068013]
[1643987332485,0.08746389,38503.0,38499.0,0.02068013]
[1643987332682,0.44909897,38507.0,38499.0,0.02068013]
[1643987332683,0.39909897,38507.0,38499.0,0.02068013]
[1643987332887,0.05,38503.0,38499.0,8.013e-05]
[1643987333082,0.0206,38500.0,38499.0,0.06502513]
[1643987333583,0.30215003,38501.0,38497.0,0.129892]
[1643987333789,0.05,38501.0,38497.0,0.129892]
[1643987333983,0.05,38499.0,38497.0,0.129892]
[1643987334183,0.05,38501.0,38497.0,0.129892]
[1643987334383,0.05,38500.0,38497.0,0.129892]
[1643987334584,0.2480991,38504.0,38497.0,0.129892]
[1643987334585,0.05,38503.0,38497.0,0.129892]
[1643987334823,0.21426509,38503.0,38497.0,0.129892]
[1643987335620,0.25895135,38498.0,38497.0,0.129892]
[1643987336024,0.16795472,38497.0,38488.0,0.01859544]
[1643987336224,0.35895135,38498.0,38472.0,0.05]
[1643987336225,0.15763023,38482.0,38472.0,0.05]
[1643987336422,0.15763023,38482.0,38471.0,0.01]
[1643987336423,1.20245023,38482.0,38471.0,0.01]
[1643987336623,0.346739,38481.0,38471.0,0.01]
[1643987336828,0.31266867,38479.0,38471.0,0.28308258]
[1643987337019,0.05,38481.0,38471.0,0.28308258]
[1643987337020,0.01859544,38489.0,38478.0,0.13821875]
[1643987337223,0.01859544,38489.0,38482.0,0.05]
[1643987337224,0.5,38487.0,38482.0,0.05]
[1643987337421,0.01859544,38489.0,38487.0,0.39056769]
[1643987337624,0.01859544,38489.0,38481.0,0.129936]
[1643987337821,0.00859544,38489.0,38482.0,0.05]
[1643987338024,0.00859544,38489.0,38482.0,0.32095902]
[1643987338221,0.00859544,38489.0,38488.0,0.06]
[1643987338477,0.05,38492.0,38488.0,0.33308258]
[1643987338669,0.5,38503.0,38491.0,0.05]
[1643987338872,0.02154899,38530.0,38502.0,0.18821875]
[1643987338873,0.05,38519.0,38502.0,0.18821875]
[1643987339073,0.05,38519.0,38506.0,0.1495185]
[1643987339269,0.05,38519.0,38506.0,0.46321715]
[1643987339270,0.2224674,38518.0,38506.0,0.46321715]
[1643987339468,0.0005,38513.0,38506.0,0.46321715]
[1643987339671,0.010435,38507.0,38506.0,0.46321715]
[1643987340070,0.02151771,38512.0,38506.0,0.46321715]
[1643987340269,0.02151771,38512.0,38509.0,0.11493]
[1643987340471,0.2792974,38511.0,38509.0,0.06493]
[1643987340676,0.02151771,38512.0,38503.0,0.05]
[1643987340870,0.02151771,38512.0,38511.0,0.05]
[1643987341473,0.0212065,38524.0,38511.0,0.05]
[1643987341474,0.31088208,38517.0,38511.0,0.05]
[1643987341674,0.31088208,38517.0,38511.0,0.07151771]
[1643987341879,0.32434897,38522.0,38511.0,0.07151771]
[1643987342072,0.05,38512.0,38511.0,0.07151771]
[1643987342334,0.05,38512.0,38511.0,0.02151771]
[1643987342533,0.05,38512.0,38511.0,0.02417128]
[1643987342733,0.002,38516.0,38515.0,0.28879891]
[1643987342932,0.002,38516.0,38511.0,0.02417128]
[1643987343135,0.17929965,38515.0,38511.0,0.02417128]
[1643987343341,0.17929965,38515.0,38508.0,0.12986]
[1643987343342,1.85,38515.0,38508.0,0.12986]
[1643987343537,1.85,38513.0,38497.0,0.259692]
[1643987343735,1.28942029,38512.0,38497.0,0.259692]
[1643987343934,0.33638175,38498.0,38488.0,0.05]
[1643987344134,0.01677479,38507.0,38486.0,0.05]
[1643987344337,0.18195554,38500.0,38498.0,0.045]
[1643987344536,0.02177479,38507.0,38495.0,0.27308258]
[1643987344734,0.05,38510.0,38502.0,0.06494]
[1643987344934,0.05,38510.0,38493.0,0.40297858]
[1643987344935,0.0926258,38505.0,38495.0,0.09973]
[1643987345136,0.38085735,38502.0,38495.0,0.09973]
[1643987345340,1.05,38495.0,38488.0,0.27308258]
[1643987345539,1.05,38495.0,38475.0,0.0929796]
[1643987345540,0.05,38489.0,38475.0,0.0929796]
[1643987345738,0.18528213,38494.0,38482.0,0.13821875]
[1643987345739,0.05,38494.0,38482.0,0.13821875]
[1643987345970,0.05,38494.0,38486.0,0.16441546]
[1643987346166,0.05,38492.0,38489.0,0.28433635]
[1643987346363,0.1,38495.0,38489.0,0.41424935]
[1643987346565,0.32789827,38503.0,38489.0,0.41424935]
[1643987346768,0.05,38493.0,38489.0,0.129913]
[1643987346963,0.05,38505.0,38482.0,0.259774]
[1643987346964,0.05,38490.0,38482.0,0.259774]
[1643987347165,0.49555903,38504.0,38482.0,0.259774]
[1643987347166,0.05,38483.0,38482.0,0.259774]
[1643987347562,0.01178125,38503.0,38482.0,0.259774]
[1643987347563,0.05,38495.0,38490.0,0.00266732]
[1643987347765,0.6561066,38494.0,38490.0,0.00266732]
[1643987347965,0.6561066,38494.0,38490.0,0.00099788]
[1643987347966,0.05,38494.0,38490.0,0.00099788]
[1643987348266,0.064966,38500.0,38489.0,5.018e-05]
[1643987348267,1.85,38498.0,38489.0,5.018e-05]
[1643987348467,0.09136063,38491.0,38489.0,5.018e-05]
[1643987348665,0.14136063,38491.0,38489.0,5.018e-05]
[1643987348866,2.04924317,38490.0,38482.0,0.259774]
[1643987349066,2.04924317,38490.0,38478.0,0.02449998]
[1643987349067,0.64659276,38489.0,38478.0,0.02449998]
[1643987349272,0.064981,38493.0,38478.0,9.998e-05]
[1643987349470,0.04851086,38499.0,38490.0,0.13821875]
[1643987349718,0.129951,38501.0,38478.0,0.13004298]
[1643987349719,0.05,38493.0,38479.0,0.26541562]
[1643987349919,0.01959573,38502.0,38479.0,0.26541562]
[1643987350117,0.15879451,38501.0,38494.0,0.29692982]
[1643987350319,0.01959573,38502.0,38494.0,0.29692982]
[1643987350519,0.01959573,38502.0,38495.0,0.26541562]
[1643987350718,0.01959573,38502.0,38501.0,0.13821875]
[1643987350932,0.01959573,38502.0,38495.0,0.26541562]
[1643987350933,0.01959573,38502.0,38495.0,0.33036462]
[1643987351121,0.05,38510.0,38498.0,0.13821875]
[1643987351320,0.15846645,38507.0,38497.0,0.26541562]
[1643987351519,0.05,38511.0,38506.0,0.13821875]
[1643987351720,0.05,38511.0,38501.0,0.14947473]
[1643987351921,0.05,38511.0,38504.0,0.11821875]
[1643987352222,0.05,38515.0,38510.0,0.11821875]
[1643987352423,0.002,38516.0,38514.0,0.11821875]
[1643987352828,0.38366613,38515.0,38512.0,0.129811]
[1643987353024,0.05,38516.0,38512.0,0.12897312]
[1643987353222,0.05,38513.0,38512.0,0.40133243]
[1643987353473,0.05,38517.0,38512.0,0.40133243]
[1643987353670,0.051,38518.0,38512.0,0.40133243]
[1643987354066,0.32366304,38518.0,38512.0,0.40133243]
[1643987354266,0.4522742,38518.0,38512.0,0.40133243]
[1643987354467,0.4022742,38518.0,38512.0,0.1272866]
[1643987354865,0.4522742,38518.0,38512.0,0.1272866]
[1643987355365,0.2852519,38514.0,38513.0,0.064924]
[1643987355567,0.3352519,38514.0,38510.0,0.01924569]
[1643987355769,0.05,38511.0,38497.0,0.259699]
[1643987355968,0.05,38506.0,38497.0,0.259699]
[1643987356271,0.05,38507.0,38497.0,0.37712112]
[1643987356468,0.05,38507.0,38500.0,0.22101076]
[1643987356666,0.31919674,38507.0,38499.0,0.11821875]
[1643987356868,0.05,38506.0,38497.0,0.25890237]
[1643987357067,0.49490686,38503.0,38501.0,0.064941]
[1643987357316,0.05,38506.0,38501.0,0.064941]
[1643987357317,0.32180532,38506.0,38501.0,0.064941]
[1643987357721,0.01924569,38511.0,38496.0,0.00100608]
[1643987357722,0.3841774,38498.0,38496.0,0.00100608]
[1643987357917,0.01924569,38511.0,38493.0,0.2596804]
[1643987357918,0.05,38509.0,38493.0,0.2596804]
[1643987358120,0.01924569,38511.0,38493.0,0.2596804]
[1643987358319,0.16239986,38504.0,38493.0,0.2596804]
[1643987358519,0.01924569,38511.0,38493.0,0.37789915]
[1643987358718,0.24165349,38506.0,38501.0,0.16821875]
[1643987358923,0.24165349,38506.0,38495.0,0.2596804]
[1643987359117,0.35870204,38502.0,38495.0,0.2596804]
[1643987359320,0.40870204,38502.0,38498.0,0.05]
[1643987359518,0.05,38502.0,38498.0,0.05]
[1643987359719,0.064956,38510.0,38498.0,0.05]
[1643987360320,0.29982231,38502.0,38498.0,0.05]
[1643987360522,0.10129137,38500.0,38498.0,0.05]
[1643987360822,0.37078298,38494.0,38493.0,0.129898]
[1643987361085,0.37078298,38494.0,38487.0,0.01909677]
[1643987361483,0.29982231,38502.0,38487.0,0.01909677]
[1643987361677,0.18581067,38496.0,38487.0,0.01909677]
[1643987361878,0.10193334,38491.0,38487.0,0.01909677]
[1643987362079,0.05,38493.0,38487.0,0.01909677]
[1643987362277,0.05,38495.0,38487.0,0.01909677]
[1643987362479,0.30692566,38493.0,38487.0,0.01909677]
[1643987362678,0.05,38495.0,38487.0,0.01909677]
[1643987362877,0.00190261,38502.0,38487.0,0.01909677]
[1643987363079,0.29370289,38494.0,38487.0,0.01909677]
[1643987363279,0.02134484,38501.0,38486.0,0.06497]
[1643987363479,0.02134484,38501.0,38487.0,0.0823195]
[1643987363682,0.18771432,38497.0,38490.0,0.12992]
[1643987364083,0.3378417,38498.0,38490.0,0.12992]
[1643987364279,0.3378417,38498.0,38490.0,0.36081884]
[1643987364480,0.02134484,38501.0,38490.0,0.36081884]
[1643987364721,0.00190261,38502.0,38499.0,0.16821875]
[1643987364921,0.00190261,38502.0,38499.0,0.29810375]
[1643987365116,0.11784356,38514.0,38501.0,0.16821875]
[1643987365318,0.02060639,38506.0,38505.0,0.11821875]
[1643987365518,0.02060639,38506.0,38505.0,0.49806395]
[1643987365716,0.29094377,38516.0,38505.0,0.49806395]
[1643987365717,0.00085361,38515.0,38505.0,0.49806395]
[1643987365916,0.29094377,38516.0,38505.0,0.49806395]
[1643987365917,0.00085361,38511.0,38508.0,0.129864]
[1643987366316,0.37379061,38510.0,38508.0,0.129864]
[1643987366620,0.00085361,38511.0,38508.0,0.129864]
[1643987366818,0.00085361,38511.0,38508.0,0.11359138]
[1643987367017,2.86171444,38517.0,38508.0,0.11359138]
[1643987367217,0.00085361,38512.0,38508.0,0.11359138]
[1643987367617,0.33128804,38511.0,38508.0,0.11359138]
[1643987368329,0.00085361,38515.0,38509.0,0.25509518]
[1643987368564,0.00085361,38517.0,38514.0,0.16736514]
[1643987368763,0.00085361,38517.0,38509.0,0.25509518]
[1643987369168,0.48998555,38516.0,38508.0,0.31107931]
[1643987369362,0.48998555,38516.0,38507.0,0.30424157]
[1643987369363,0.00085361,38512.0,38507.0,0.30424157]
[1643987369563,0.01670249,38513.0,38507.0,0.04914639]
[1643987369762,0.01670249,38513.0,38509.0,0.02055528]
[1643987370164,0.01670249,38513.0,38509.0,0.21530428]
[1643987370364,0.01670249,38513.0,38512.0,0.49914639]
[1643987370565,0.001,38518.0,38512.0,0.42391515]
[1643987370866,0.001,38518.0,38512.0,0.37476876]
[1643987371065,0.00094,38518.0,38513.0,0.04914639]
[1643987371265,0.00094,38518.0,38515.0,0.04914639]
[1643987371266,0.00082,38518.0,38515.0,0.04914639]
[1643987371465,0.00082,38518.0,38516.0,0.064914]
[1643987371669,0.0007,38518.0,38517.0,0.09368825]
[1643987371870,0.0011,38528.0,38517.0,0.49407819]
[1643987371871,0.00378571,38527.0,38517.0,0.49407819]
[1643987372071,0.00366571,38527.0,38520.0,0.16821875]
[1643987372351,0.00354571,38527.0,38517.0,0.09368825]
[1643987372547,0.00336571,38527.0,38522.0,0.24856951]
[1643987372747,0.00336571,38527.0,38521.0,0.06406569]
[1643987373348,0.0011,38528.0,38526.0,0.05]
[1643987373554,0.0153,38529.0,38528.0,0.11821875]
[1643987373555,0.012,38529.0,38528.0,0.11821875]
[1643987373749,0.012,38529.0,38528.0,0.42220825]
[1643987373948,0.0081,38529.0,38528.0,0.25110389]
[1643987374148,0.02491235,38537.0,38527.0,0.064886]
[1643987374350,0.02491235,38537.0,38530.0,0.24010347]
[1643987374547,0.02491235,38537.0,38533.0,0.16821875]
[1643987374752,0.02491235,38537.0,38527.0,0.064886]
[1643987375146,0.02491235,38537.0,38530.0,0.01928984]
[1643987375348,0.33092032,38536.0,38533.0,0.11821875]
[1643987375546,0.33092032,38536.0,38530.0,0.01928984]
[1643987375547,0.33092032,38536.0,38535.0,0.064884]
[1643987375747,0.33092032,38536.0,38532.0,0.129766]
[1643987375965,0.02491235,38537.0,38532.0,0.129766]
[1643987376167,0.02491235,38537.0,38533.0,0.05]
[1643987376368,0.02491235,38537.0,38535.0,0.11321875]
[1643987376766,0.02491235,38537.0,38536.0,0.27330542]
[1643987376972,0.02232689,38540.0,38537.0,0.34941]
[1643987376973,0.002,38540.0,38537.0,0.34941]
[1643987377169,0.001,38554.0,38541.0,0.99461]
[1643987377368,0.001,38554.0,38547.0,0.16321875]
[1643987377569,0.05023,38561.0,38547.0,0.16321875]
[1643987377570,0.03253728,38561.0,38547.0,0.06486]
[1643987377768,0.2744389,38553.0,38547.0,0.06486]
[1643987377967,0.2744389,38553.0,38537.0,0.6739895]
[1643987378169,0.05,38561.0,38537.0,0.6739895]
[1643987378367,0.05,38561.0,38543.0,0.05]
[1643987378565,0.05,38561.0,38541.0,0.12976]
[1643987378566,0.793,38566.0,38544.0,0.3039895]
[1643987378766,0.793,38566.0,38547.0,0.05]
[1643987378767,0.001,38563.0,38547.0,0.05]
[1643987378967,0.16905815,38561.0,38545.0,0.21804763]
[1643987379166,0.36338793,38557.0,38554.0,0.22303549]
[1643987379365,0.36338793,38557.0,38547.0,0.1]
[1643987379568,0.36338793,38557.0,38546.0,0.075]
[1643987379819,0.36338793,38557.0,38548.0,0.12972]
[1643987379820,0.36294588,38557.0,38548.0,0.12972]
[1643987380017,0.346739,38556.0,38543.0,0.02127803]
[1643987380221,0.27945993,38561.0,38543.0,0.02127803]
[1643987380222,0.32506539,38544.0,38543.0,0.02127803]
[1643987380617,0.32506539,38544.0,38539.0,0.19459]
[1643987380618,0.92488539,38544.0,38539.0,0.19459]
[1643987380920,0.04994,38543.0,38532.0,0.259477]
[1643987381118,1.85,38542.0,38520.0,0.025]
[1643987381321,1.85,38542.0,38524.0,0.075]
[1643987381322,0.26963326,38537.0,38524.0,0.075]
[1643987381518,0.26963326,38537.0,38516.0,0.21333572]
[1643987381519,0.0193905,38539.0,38532.0,0.02]
[1643987381720,0.26134163,38538.0,38528.0,0.1015443]
[1643987381917,0.26122163,38538.0,38528.0,0.02]
[1643987382119,0.20099573,38535.0,38532.0,0.129774]
[1643987382317,0.26110163,38538.0,38532.0,0.129774]
[1643987382318,0.26104163,38538.0,38532.0,0.129774]
[1643987382518,0.0192705,38539.0,38533.0,0.02]
[1643987382724,0.0192105,38539.0,38533.0,0.02]
[1643987382919,0.0190305,38539.0,38532.0,0.129774]
[1643987383120,0.2539895,38550.0,38538.0,0.02]
[1643987383322,0.2539295,38555.0,38540.0,0.084868]
[1643987383585,0.07780479,38559.0,38554.0,0.02]
[1643987383586,0.07774479,38559.0,38554.0,0.02]
[1643987383783,0.07929076,38566.0,38554.0,0.02]
[1643987383784,0.00088,38563.0,38554.0,0.02]
[1643987383981,0.00088,38563.0,38551.0,0.02]
[1643987383982,0.00076,38563.0,38551.0,0.02]
[1643987384180,0.97821272,38567.0,38551.0,0.02]
[1643987384481,0.97821272,38567.0,38548.0,0.19458]
[1643987384482,0.223656,38558.0,38549.0,0.2539895]
[1643987384684,0.97821272,38567.0,38551.0,0.06486]
[1643987384881,0.03,38563.0,38551.0,0.06486]
[1643987385081,0.2539895,38562.0,38551.0,0.06486]
[1643987385284,0.03,38564.0,38551.0,0.06486]
[1643987385481,0.26073379,38566.0,38554.0,0.25368874]